bitfinex/quotes_ETHUSD_20250616
["timestamp","ask_amount","ask_price","bid_price","bid_amount"]
[1750094834122,0.1888,2641.7,2641.6,15.30142427]
[1750094834649,0.1888,2641.7,2641.6,7.48042427]
[1750094834954,0.1888,2641.7,2641.6,12.91963216]
[1750094838473,0.1888,2641.7,2641.6,12.15653216]
[1750094843135,0.1888,2641.7,2641.5,3.78566108]
[1750094843340,0.1888,2641.7,2641.6,7.818]
[1750094843831,0.1888,2641.7,2641.6,1.615]
[1750094844034,0.1888,2641.7,2641.6,11.60358449]
[1750094844455,0.1888,2641.7,2641.6,1.615]
[1750094844660,0.1888,2641.7,2641.6,7.817]
[1750094845487,0.1888,2641.7,2641.6,1.615]
[1750094845682,0.1888,2641.7,2641.6,7.817]
[1750094846485,4.45289193,2641.7,2641.2,6.0122]
[1750094846693,11.46009623,2641.6,2641.3,6.202]
[1750094846895,11.46014463,2641.6,2641.4,6.202]
[1750094847981,0.1888,2641.4,2641.2,8.45606098]
[1750094848176,3.7854812,2641.7,2641.3,6.202]
[1750094849492,0.1888,2641.3,2641.0,2.4072]
[1750094849788,3.78559237,2641.6,2641.1,6.202]
[1750094849987,3.78573892,2641.5,2641.0,2.4072]
[1750094850193,0.1888,2641.1,2640.8,0.7573]
[1750094850394,12.2804376,2641.4,2641.0,1.615]
[1750094850395,8.49449134,2641.4,2641.0,1.615]
[1750094850566,13.12986978,2641.4,2641.0,1.615]
[1750094850752,3.78602659,2641.3,2641.0,1.615]
[1750094851265,13.12981163,2641.4,2641.1,6.202]
[1750094851460,3.78609,2641.3,2641.1,6.202]
[1750094851865,3.78609,2641.3,2641.0,1.615]
[1750094851866,3.78609,2641.3,2641.2,6.202]
[1750094853171,3.78630116,2641.1,2641.0,1.615]
[1750094853354,3.78630116,2641.1,2641.0,7.817]
[1750094853558,3.9753652,2641.0,2640.8,2.165]
[1750094853792,3.9753652,2641.0,2640.8,0.55]
[1750094853977,3.7865879,2640.9,2640.8,0.55]
[1750094854176,3.7865879,2640.9,2640.8,7.817]
[1750094854378,3.7871125,2640.6,2640.4,2.3812]
[1750094854597,3.97596152,2640.5,2640.4,1.615]
[1750094854799,0.1888,2640.5,2640.4,7.816]
[1750094855296,3.97596152,2640.5,2640.4,7.816]
[1750094855892,0.1888,2640.5,2640.4,7.816]
[1750094859800,0.1888,2640.5,2640.4,9.9445871]
[1750094865813,3.97596152,2640.5,2640.4,1.615]
[1750094866011,3.97596152,2640.5,2639.9,2.3744]
[1750094866012,3.78759184,2640.2,2639.9,2.3744]
[1750094866309,3.78787878,2640.0,2639.9,1.615]
[1750094866610,3.97667878,2640.0,2639.9,2.165]
[1750094866773,3.97667878,2640.0,2639.9,1.615]
[1750094867348,3.78822662,2639.8,2639.4,1.615]
[1750094867560,0.1888,2639.7,2639.5,6.751]
[1750094867760,0.1888,2639.7,2639.5,6.201]
[1750094870139,3.78799962,2640.0,2639.6,6.201]
[1750094870503,3.78810335,2639.9,2639.6,6.201]
[1750094870703,3.78785255,2640.1,2639.6,6.201]
[1750094871042,3.78779528,2640.1,2639.7,6.201]
[1750094871343,3.78773531,2640.1,2639.7,6.201]
[1750094872046,7.67449134,2640.1,2639.6,0.771]
[1750094872217,3.78765236,2640.2,2639.8,6.202]
[1750094873178,0.8123,2640.4,2639.8,6.202]
[1750094873450,13.78747743,2640.3,2639.8,9.99010069]
[1750094873649,3.78759967,2640.2,2639.8,9.99010069]
[1750094873854,3.787514,2640.3,2639.8,9.99008966]
[1750094874027,3.787514,2640.3,2639.9,3.78800624]
[1750094874358,14.59968829,2640.4,2639.9,3.78800624]
[1750094874704,3.78676103,2640.8,2639.8,6.202]
[1750094874705,0.7567,2640.6,2640.1,3.7877206]
[1750094874911,10.0,2640.4,2640.2,6.202]
[1750094875414,4.54381653,2640.6,2640.2,6.202]
[1750094875617,3.78711653,2640.6,2640.2,6.202]
[1750094875817,13.78694274,2640.7,2640.2,9.98951845]
[1750094876213,3.95743504,2640.8,2640.4,3.78724005]
[1750094876423,3.17843504,2640.8,2640.5,6.201]
[1750094876724,3.17843504,2640.8,2640.5,9.98814361]
[1750094876933,3.17843504,2640.8,2640.5,6.201]
[1750094877426,6.96522748,2640.8,2640.5,6.201]
[1750094877630,3.17843504,2640.8,2640.5,6.201]
[1750094877834,3.17843504,2640.8,2640.5,9.98815732]
[1750094878145,6.96517497,2640.8,2640.5,6.201]
[1750094878511,3.17843504,2640.8,2640.5,6.201]
[1750094878946,3.17843504,2640.8,2640.5,9.98815483]
[1750094879148,6.9651697,2640.8,2640.5,6.201]
[1750094880362,0.1888,2640.7,2640.5,6.201]
[1750094881045,0.1888,2640.7,2640.5,0.55]
[1750094881247,0.1888,2640.7,2640.4,0.7739]
[1750094881248,3.97574061,2640.7,2640.6,6.2]
[1750094881430,0.1888,2640.7,2640.6,6.2]
[1750094881615,3.97567469,2640.7,2640.6,6.2]
[1750094887259,0.1888,2640.7,2640.6,6.2]
[1750094887619,3.17843504,2640.8,2640.7,4.33687469]
[1750094887823,3.17843504,2640.8,2640.7,14.47823115]
[1750094888030,3.17843504,2640.8,2640.7,14.44036603]
[1750094888262,3.17843504,2640.8,2640.7,2.979]
[1750094888446,3.17843504,2640.8,2640.5,4.59128066]
[1750094888661,3.17843504,2640.8,2640.6,8.362]
[1750094888970,3.17843504,2640.8,2640.6,12.14900113]
[1750094889276,3.17843504,2640.8,2640.6,13.91131374]
[1750094889488,3.17843504,2640.8,2640.7,12.84153154]
[1750094889668,3.17843504,2640.8,2640.7,12.80366603]
[1750094890590,3.17843504,2640.8,2640.7,5.12917469]
[1750094890744,3.17843504,2640.8,2640.7,12.94017469]
[1750094890949,3.17843504,2640.8,2640.7,15.55657267]
[1750094894487,3.17843504,2640.8,2640.7,23.23106401]
[1750094897795,10.0,2642.8,2641.8,3.7852979]
[1750094898005,0.8318,2642.4,2641.8,8.73752979]
[1750094898170,0.8318,2642.4,2641.8,0.55]
[1750094898171,0.1888,2642.0,2641.8,0.55]
[1750094898371,3.78473279,2642.2,2641.8,1.612]
[1750094898608,0.8318,2642.0,2641.8,7.808]
[1750094898901,14.17680302,2642.9,2641.8,7.808]
[1750094898902,10.0,2642.4,2641.8,11.5932979]
[1750094899200,10.3930772,2642.9,2641.8,11.5932979]
[1750094899201,0.1888,2642.0,2641.8,12.1432979]
[1750094899360,0.8318,2642.5,2641.8,14.57960021]
[1750094899567,0.1888,2642.4,2641.8,22.25409155]
[1750094900384,0.1888,2642.4,2641.8,14.44609155]
[1750094900589,0.1888,2642.4,2641.8,22.25409155]
[1750094901617,11.45875121,2642.6,2641.8,8.38360021]
[1750094901790,0.1888,2642.2,2641.8,12.1422979]
[1750094902315,0.2088,2641.9,2641.8,12.1422979]
[1750094903177,0.2088,2641.9,2641.8,1.612]
[1750094903384,0.2088,2641.9,2641.5,3.78560098]
[1750094903584,0.02,2641.9,2641.6,7.807]
[1750094904224,0.02,2641.9,2641.7,3.78543028]
[1750094904378,0.02,2641.9,2641.8,9.9802979]
[1750094904583,0.02,2641.9,2641.8,10.5302979]
[1750094904902,0.02,2641.9,2641.8,12.49165304]
[1750094906186,0.02,2641.9,2641.8,6.29665304]
[1750094906423,0.02,2641.9,2641.8,12.1392979]
[1750094907116,0.02,2641.9,2641.8,5.9452979]
[1750094907320,0.02,2641.9,2641.8,12.1392979]
[1750094907526,0.02,2641.9,2641.8,3.7852979]
[1750094907735,0.02,2641.9,2641.8,1.61]
[1750094907897,0.02,2641.9,2641.8,7.804]
[1750094908721,0.02,2641.9,2641.8,11.5892979]
[1750094909042,0.02,2641.9,2641.8,13.48853609]
[1750094909187,0.02,2641.9,2641.8,14.30373609]
[1750094910033,0.02,2641.9,2641.8,13.48853609]
[1750094911199,0.02,2641.9,2641.8,5.68453609]
[1750094911404,0.02,2641.9,2641.8,11.87753609]
[1750094912439,0.02,2641.9,2641.8,12.64403609]
[1750094916652,0.02,2641.9,2641.8,17.31403609]
[1750094917629,0.02,2641.9,2641.8,17.50283609]
[1750094918504,0.02,2641.9,2641.8,17.87526371]
[1750094918705,0.02,2641.9,2641.8,17.50283609]
[1750094920054,0.02,2641.9,2641.8,22.83283609]
[1750094920734,0.02,2641.9,2641.8,22.83183609]
[1750094921317,0.02,2641.9,2641.8,24.44083609]
[1750094922426,0.02,2641.9,2641.8,24.81102274]
[1750094924352,0.02,2641.9,2641.8,24.81002274]
[1750094925136,0.02,2641.9,2641.8,32.48451408]
[1750094926444,0.02,2641.9,2641.8,37.15451408]
[1750094929977,0.02,2641.9,2641.8,33.22328855]
[1750094930199,0.02,2641.9,2641.8,18.37003609]
[1750094930359,0.02,2641.9,2641.8,17.60353609]
[1750094930548,0.02,2641.9,2641.8,18.15353609]
[1750094930980,0.02,2641.9,2641.8,17.60353609]
[1750094931167,0.02,2641.9,2641.8,10.6142979]
[1750094931368,0.02,2641.9,2641.8,16.8042979]
[1750094934274,0.02,2641.9,2641.8,12.1342979]
[1750094935073,0.02,2641.9,2641.8,5.9442979]
[1750094935276,0.02,2641.9,2641.8,12.17214671]
[1750094935609,0.02,2641.9,2641.8,1.609]
[1750094935967,0.87236913,2641.9,2641.8,7.799]
[1750094936394,0.02,2641.9,2641.8,7.799]
[1750094938960,12.24384596,2641.9,2641.4,1.608]
[1750094939186,8.43869134,2641.5,2641.4,1.608]
[1750094939398,8.43869134,2641.5,2641.4,7.798]
[1750094939598,12.22441914,2641.5,2641.4,7.798]
[1750094939769,0.7642,2641.5,2641.4,7.798]
[1750094940096,0.7642,2641.5,2641.4,7.799]
[1750094940603,0.1888,2641.4,2641.3,3.7860019]
[1750094940808,0.7642,2641.5,2641.3,6.191]
[1750094941507,0.7642,2641.5,2641.0,1.608]
[1750094941508,0.7791,2641.2,2641.0,1.608]
[1750094941662,0.7791,2641.2,2640.7,8.002]
[1750094941663,8.45359134,2641.2,2640.7,8.002]
[1750094941864,0.7791,2641.0,2640.8,6.19]
[1750094942558,0.7791,2641.0,2640.8,3.78672092]
[1750094942758,0.1888,2640.8,2640.7,11.78881462]
[1750094942999,0.1888,2640.8,2640.7,17.97881462]
[1750094943701,0.1888,2640.8,2640.7,8.002]
[1750094944004,0.1888,2640.8,2640.7,14.192]
[1750094944969,0.1888,2640.8,2640.7,11.78887469]
[1750094945168,0.1888,2640.8,2640.7,17.97987469]
[1750094945682,0.1888,2640.8,2640.7,8.002]
[1750094945883,0.1888,2640.8,2640.7,14.193]
[1750094946281,0.1888,2640.8,2640.7,14.56783047]
[1750094946895,0.1888,2640.8,2640.7,8.37683047]
[1750094947097,0.1888,2640.8,2640.7,0.37483047]
[1750094947314,0.1888,2640.8,2640.7,6.192]
[1750094947478,0.1888,2640.8,2640.7,9.97887469]
[1750094947894,0.1888,2640.8,2640.7,3.78687469]
[1750094948220,0.1888,2640.8,2640.7,9.97887469]
[1750094949010,0.1888,2640.8,2640.7,6.192]
[1750094949502,0.1888,2640.8,2640.7,9.97887469]
[1750094949709,0.1888,2640.8,2640.7,10.35163774]
[1750094950406,0.8033,2641.3,2640.8,0.55]
[1750094950607,0.8033,2641.3,2641.1,3.78617161]
[1750094950784,0.8033,2641.3,2641.2,6.192]
[1750094952485,0.8033,2641.3,2641.2,9.9781578]
[1750094952682,0.8033,2641.3,2641.2,6.192]
[1750094953173,0.8033,2641.3,2641.2,9.9781578]
[1750094953372,2.69796436,2641.6,2641.3,0.55]
[1750094953710,2.69796436,2641.6,2641.5,3.7857278]
[1750094953711,2.88676436,2641.6,2641.5,3.7857278]
[1750094954403,2.88676436,2641.6,2641.5,9.9777278]
[1750094955713,2.88676436,2641.6,2641.1,0.992]
[1750094956015,0.1888,2641.1,2640.9,5.3944661]
[1750094956316,0.1888,2641.0,2640.9,5.9444661]
[1750094956475,0.1888,2641.0,2640.9,12.1364661]
[1750094956677,0.1888,2641.0,2640.9,13.61660908]
[1750094956911,0.1888,2641.0,2640.9,12.1364661]
[1750094960272,2.69796436,2641.6,2641.5,3.7857278]
[1750094960506,2.69796436,2641.6,2640.9,19.46150609]
[1750094960507,0.1888,2641.3,2641.2,4.3361578]
[1750094960686,0.1888,2641.4,2641.3,3.78600666]
[1750094962294,0.1888,2641.4,2641.2,10.52814018]
[1750094962295,0.1888,2641.4,2641.2,3.78608049]
[1750094962601,0.1888,2641.2,2640.9,1.608]
[1750094962805,0.1888,2641.2,2641.0,6.192]
[1750094962990,0.1888,2641.2,2640.9,1.608]
[1750094962991,3.78637215,2641.1,2640.9,1.608]
[1750094963198,0.7729,2641.0,2640.9,1.608]
[1750094963820,0.7729,2641.0,2640.7,0.37276305]
[1750094963821,0.1888,2640.9,2640.6,3.7869573]
[1750094963990,0.1888,2640.7,2640.6,3.7869573]
[1750094964327,0.1888,2640.7,2640.6,9.9789573]
[1750094965152,0.1888,2640.7,2640.6,12.06646661]
[1750094965509,0.1888,2640.7,2640.6,5.87446661]
[1750094965741,0.1888,2640.7,2640.6,10.5289573]
[1750094966744,1.0073,2640.7,2640.6,6.192]
[1750094967251,1.0073,2640.7,2640.6,9.9790181]
[1750094967545,1.0073,2640.7,2640.6,10.36269669]
[1750094968848,1.0073,2640.7,2640.6,9.9790181]
[1750094970312,1.0073,2640.7,2640.6,6.192]
[1750094970546,1.0073,2640.7,2640.6,9.9790181]
[1750094971147,15.66966998,2640.7,2640.2,3.78758065]
[1750094971350,15.66966998,2640.7,2640.0,3.78778988]
[1750094971351,3.97597581,2640.5,2640.0,5.39581619]
[1750094971567,3.97597581,2640.5,2640.0,1.608]
[1750094971568,0.8002,2640.5,2640.0,1.608]
[1750094971726,0.8002,2640.5,2640.2,3.78759184]
[1750094972050,0.8002,2640.5,2640.3,9.97937445]
[1750094972258,0.8002,2640.5,2640.2,3.78759184]
[1750094972259,0.8002,2640.5,2640.2,3.78752148]
[1750094972464,0.8002,2640.5,2640.3,6.192]
[1750094973966,0.8002,2640.5,2640.3,9.97944226]
[1750094974163,0.8002,2640.5,2640.3,6.192]
[1750094975163,0.8002,2640.5,2640.3,9.97943068]
[1750094975363,0.8002,2640.5,2640.3,6.192]
[1750094975855,0.8002,2640.5,2640.3,9.97943637]
[1750094976738,0.1888,2640.4,2640.3,10.52944839]
[1750094977337,0.1888,2640.4,2640.3,11.29218102]
[1750094978490,0.8059,2641.0,2640.6,3.78689019]
[1750094978633,4.59235214,2641.0,2640.7,6.193]
[1750094978832,0.8059,2641.0,2640.7,6.193]
[1750094980107,4.59235816,2641.0,2640.7,6.193]
[1750094981079,4.59235445,2641.0,2640.7,6.193]
[1750094981881,0.8059,2641.0,2640.7,9.97980374]
[1750094982069,0.7598,2641.2,2640.7,6.9746]
[1750094982271,10.0,2641.3,2640.7,6.9746]
[1750094982272,0.7598,2641.4,2641.0,3.78636838]
[1750094982611,0.7598,2641.4,2641.1,6.193]
[1750094982743,4.54567125,2641.4,2641.1,6.193]
[1750094983383,3.78606811,2641.3,2641.1,6.193]
[1750094983646,0.7598,2641.4,2641.1,6.193]
[1750094983856,0.7598,2641.4,2641.1,10.9771645]
[1750094984164,0.1888,2641.3,2641.2,3.78602897]
[1750094984886,0.1888,2641.3,2641.1,11.76547031]
[1750094985054,0.1888,2641.3,2641.2,3.7861578]
[1750094985572,0.1888,2641.3,2641.1,11.76547994]
[1750094985888,0.1888,2641.3,2641.2,1.13344987]
[1750094986189,0.1888,2641.3,2641.1,10.97721418]
[1750094987343,0.1888,2641.3,2641.2,3.7861578]
[1750094987682,0.1888,2641.3,2641.1,10.97716435]
[1750094988885,0.1888,2641.3,2641.1,7.19094162]
[1750094989189,0.1888,2641.3,2641.1,6.193]
[1750094989389,0.1888,2641.3,2641.1,9.97929191]
[1750094989586,0.1888,2641.3,2640.9,5.12483234]
[1750094989587,0.1888,2641.3,2640.9,1.3383]
[1750094989797,3.50836436,2641.6,2640.8,5.39465676]
[1750094989798,0.1888,2641.0,2640.8,5.39465676]
[1750094989997,4.57537019,2641.2,2640.9,6.192]
[1750094990204,4.57537019,2641.2,2641.0,6.192]
[1750094990205,3.78640887,2641.1,2641.0,6.192]
[1750094990666,3.7865879,2640.9,2640.4,10.86286297]
[1750094990865,0.1888,2640.8,2640.6,3.78700908]
[1750094991170,3.78651185,2641.0,2640.7,6.192]
[1750094991383,10.87540609,2641.1,2640.7,6.192]
[1750094991384,3.78666336,2640.9,2640.7,6.192]
[1750094991581,0.1888,2640.7,2640.5,3.78714516]
[1750094991889,0.1888,2640.7,2640.4,1.608]
[1750094991890,3.78651872,2641.0,2640.6,9.97899349]
[1750094992191,3.78651872,2641.0,2640.6,6.192]
[1750094992394,3.78658915,2640.9,2640.6,6.192]
[1750094992762,3.78650717,2641.0,2640.6,6.192]
[1750094992954,3.78658911,2640.9,2640.6,6.192]
[1750094993188,5.52395344,2641.0,2640.6,6.192]
[1750094994078,3.78661873,2640.9,2640.6,6.192]
[1750094995205,0.1888,2640.6,2640.4,5.39528086]
[1750094995413,0.1888,2640.6,2640.5,3.78709911]
[1750094995571,0.1888,2640.6,2640.5,9.97909911]
[1750094995770,0.1888,2640.6,2640.4,6.01295139]
[1750094995971,4.55488298,2640.8,2640.5,6.192]
[1750094996204,4.55491138,2640.8,2640.6,6.192]
[1750094996509,4.55491138,2640.8,2640.4,1.608]
[1750094996697,4.55489279,2640.8,2640.5,6.192]
[1750094996892,12.22779637,2640.8,2640.5,6.192]
[1750094997200,13.9198936,2640.8,2640.4,1.608]
[1750094997403,0.1888,2640.5,2640.4,1.608]
[1750094997610,0.1888,2640.5,2640.4,7.8]
[1750094998123,0.1888,2640.5,2640.4,6.192]
[1750094999501,0.1888,2640.5,2640.4,9.97930495]
[1750094999891,0.1888,2640.5,2640.4,6.192]
[1750095000517,0.1888,2640.5,2640.4,9.97930495]
[1750095000694,0.1888,2640.5,2640.4,6.192]
[1750095001698,0.1888,2640.5,2640.4,9.97930495]
[1750095002435,0.1888,2640.5,2640.4,11.43283899]
[1750095003142,0.1888,2640.5,2640.4,11.98283899]
[1750095003360,0.1888,2640.5,2640.4,19.65574257]
[1750095003640,3.78617497,2641.2,2641.0,3.78643877]
[1750095003641,10.0,2641.2,2641.0,3.78643877]
[1750095003843,11.0,2641.2,2641.1,6.192]
[1750095004047,10.0,2641.2,2641.1,6.192]
[1750095004755,5.48345577,2641.5,2641.1,6.192]
[1750095004756,3.78585058,2641.5,2641.1,6.192]
[1750095004922,13.78579374,2641.5,2641.1,6.192]
[1750095005123,13.78579374,2641.5,2641.1,9.97827671]
[1750095005306,10.0,2641.5,2641.1,9.97827671]
[1750095005505,10.0,2641.5,2641.3,3.78594869]
[1750095005738,2.69796436,2641.6,2641.4,6.192]
[1750095006063,2.69796436,2641.6,2641.4,9.97783319]
[1750095006408,2.69796436,2641.6,2641.5,3.7857278]
[1750095007237,2.69796436,2641.6,2641.4,9.97781859]
[1750095007539,0.1888,2641.5,2641.4,9.97781859]
[1750095007740,0.1888,2641.5,2641.4,11.59528985]
[1750095009616,0.1888,2641.5,2641.4,5.40328985]
[1750095009826,0.1888,2641.5,2640.8,0.55]
[1750095009827,0.1888,2641.5,2641.1,5.39323575]
[1750095010012,0.1888,2641.3,2641.2,6.191]
[1750095010214,2.69796436,2641.6,2641.3,0.55]
[1750095010417,2.69796436,2641.6,2641.5,3.7857278]
[1750095011455,2.69796436,2641.6,2641.5,4.3357278]
[1750095012115,2.69796436,2641.6,2641.5,4.709345]
[1750095012353,0.1888,2641.7,2641.6,3.78558449]
[1750095012554,0.1888,2641.7,2641.4,4.61084523]
[1750095012762,3.8052826,2641.9,2641.6,6.19]
[1750095013052,0.38052826,2641.8,2641.6,6.19]
[1750095013354,0.1888,2641.6,2641.5,1.607]
[1750095013651,0.1888,2641.6,2641.5,7.797]
[1750095014854,0.1888,2641.6,2641.5,11.5827278]
[1750095015067,0.1888,2641.6,2641.5,7.797]
[1750095016231,0.1888,2641.6,2641.5,11.5827278]
[1750095016433,0.1888,2641.6,2641.5,7.797]
[1750095016960,0.1888,2641.6,2641.5,11.5827278]
[1750095017122,0.1888,2641.6,2641.5,7.797]
[1750095017657,0.1888,2641.6,2641.5,11.5827278]
[1750095017954,0.1888,2641.6,2641.5,7.797]
[1750095018258,0.1888,2641.6,2641.5,6.19]
[1750095019476,0.1888,2641.6,2641.5,9.9757278]
[1750095022159,0.1888,2641.6,2641.5,12.88409546]
[1750095022316,0.02,2641.9,2641.6,0.55]
[1750095022518,0.02,2641.9,2641.8,3.7852979]
[1750095023144,0.02,2641.9,2641.8,5.15834954]
[1750095023446,0.02,2641.9,2641.8,5.1204979]
[1750095023629,0.02,2641.9,2641.8,6.79067838]
[1750095027851,0.02,2641.9,2641.8,9.46518048]
[1750095028236,0.02,2641.9,2641.8,13.25047838]
[1750095029030,0.02,2641.9,2641.8,13.80047838]
[1750095031330,0.02,2641.9,2641.8,13.79947838]
[1750095031531,0.02,2641.9,2641.6,0.8031]
[1750095031830,0.02,2641.9,2641.7,6.188]
[1750095031831,0.8521,2641.9,2641.7,6.188]
[1750095032030,4.63737135,2641.9,2641.5,1.606]
[1750095032263,4.63737135,2641.9,2641.6,6.188]
[1750095032430,0.84224034,2641.8,2641.6,6.188]
[1750095032631,4.62756626,2641.8,2641.6,6.188]
[1750095033933,0.8521,2641.9,2641.6,6.188]
[1750095034237,0.02,2641.9,2641.6,6.188]
[1750095035134,0.02,2641.9,2641.6,9.97357789]
[1750095035430,0.02,2641.9,2641.6,6.188]
[1750095035976,3.80523498,2641.9,2641.6,6.188]
[1750095036171,0.1888,2641.6,2641.5,1.606]
[1750095036472,0.1888,2641.6,2641.5,7.794]
[1750095037268,0.1888,2641.6,2641.4,3.78579586]
[1750095037576,3.805162,2641.9,2641.5,6.188]
[1750095037958,3.805162,2641.9,2641.5,3.78571304]
[1750095038164,3.805162,2641.9,2641.6,6.188]
[1750095038476,4.73029255,2641.9,2641.6,6.188]
[1750095039250,0.94513055,2641.9,2641.6,6.188]
[1750095039572,0.94513055,2641.9,2641.6,9.97350529]
[1750095039573,0.02,2641.9,2641.6,9.97350529]
[1750095039734,0.02,2641.9,2641.6,10.73560529]
[1750095041053,3.80515843,2641.9,2641.6,6.188]
[1750095041250,0.1888,2641.6,2641.5,3.78565395]
[1750095041455,0.1888,2641.6,2641.5,9.97265395]
[1750095041694,0.1888,2641.6,2641.5,3.78565395]
[1750095041890,0.1888,2641.6,2641.5,11.57865395]
[1750095044568,0.1888,2641.6,2641.5,7.793]
[1750095044895,0.1888,2641.6,2641.5,11.5787278]
[1750095045096,0.1888,2641.6,2641.5,7.793]
[1750095045899,4.74658449,2641.6,2641.5,1.606]
[1750095046132,3.78630116,2641.1,2641.0,4.67]
[1750095046258,12.22308157,2641.2,2640.8,1.606]
[1750095046459,4.55841925,2641.2,2641.0,6.187]
[1750095047004,4.55841925,2641.2,2640.8,1.606]
[1750095047005,13.2509288,2641.2,2640.8,1.606]
[1750095047176,3.78651923,2641.0,2640.9,6.187]
[1750095047761,3.78636554,2641.1,2640.9,6.187]
[1750095048807,3.78644452,2641.0,2640.9,6.187]
[1750095049176,4.55836426,2641.2,2640.9,6.187]
[1750095049177,3.78637485,2641.1,2640.9,6.187]
[1750095049683,10.0,2641.3,2640.9,9.97351512]
[1750095049892,3.7859904,2641.4,2640.9,9.97351512]
[1750095050875,10.0,2641.4,2641.0,3.78644452]
[1750095051096,4.60673493,2641.5,2641.0,3.78644452]
[1750095051321,4.60673493,2641.5,2641.1,3.7862927]
[1750095051513,1.82219037,2641.5,2641.2,6.187]
[1750095051666,1.00119037,2641.5,2641.2,6.187]
[1750095052174,1.61966896,2641.6,2641.2,9.97308475]
[1750095052401,5.40526534,2641.6,2641.2,6.187]
[1750095052808,1.61966896,2641.6,2641.2,9.97315627]
[1750095053001,4.60650963,2641.7,2641.2,9.97315627]
[1750095053515,4.60651929,2641.7,2641.2,9.97315627]
[1750095054302,3.78560574,2641.6,2641.2,9.97315627]
[1750095054501,0.1888,2641.2,2641.1,0.8278]
[1750095054706,0.1888,2641.2,2641.1,10.80101303]
[1750095054915,0.1888,2641.2,2641.1,7.0148]
[1750095055120,0.1888,2641.2,2641.1,10.80110116]
[1750095057295,0.1888,2641.2,2640.9,1.607]
[1750095057507,3.78594004,2641.4,2641.0,9.97343358]
[1750095057813,3.78594004,2641.4,2641.0,6.187]
[1750095057984,3.74895543,2641.4,2641.0,6.187]
[1750095058185,3.78581222,2641.5,2641.0,6.187]
[1750095058409,3.78581222,2641.5,2641.0,9.97338579]
[1750095059410,4.60653477,2641.7,2641.0,6.187]
[1750095059610,3.78558523,2641.6,2641.2,3.78609479]
[1750095059791,0.821,2641.7,2641.3,6.187]
[1750095060121,20.89782721,2641.9,2641.5,4.3357278]
[1750095060122,0.1888,2641.6,2641.5,4.3357278]
[1750095060294,0.1888,2641.6,2641.5,10.5227278]
[1750095060500,0.1888,2641.6,2641.5,11.3481278]
[1750095060928,0.02,2641.9,2641.8,4.3352979]
[1750095061222,0.02,2641.9,2641.8,12.16831659]
[1750095061410,0.02,2641.9,2641.8,12.13046947]
[1750095062823,0.02,2641.9,2641.8,5.94346947]
[1750095062983,0.02,2641.9,2641.8,13.73546947]
[1750095065251,0.02,2641.9,2641.8,5.94346947]
[1750095065391,0.02,2641.9,2641.8,13.73446947]
[1750095067200,0.02,2641.9,2641.8,5.94346947]
[1750095067399,0.02,2641.9,2641.8,12.38736947]
[1750095067612,0.2088,2641.9,2641.8,12.38736947]
[1750095068899,0.2088,2641.9,2641.8,12.93736947]
[1750095070846,0.2088,2641.9,2641.8,0.81207157]
[1750095071047,0.2088,2641.9,2641.4,0.1888]
[1750095071048,3.9940371,2641.9,2641.4,3.78580977]
[1750095071338,3.9940371,2641.9,2641.5,9.9707174]
[1750095071518,0.1888,2641.5,2641.4,3.78579148]
[1750095071714,0.1888,2641.5,2641.4,10.52079148]
[1750095071929,0.1888,2641.5,2641.4,11.57303913]
[1750095072114,0.02,2641.9,2641.8,3.7852979]
[1750095072316,0.02,2641.9,2641.5,0.55]
[1750095072518,0.02,2641.9,2641.4,3.78580723]
[1750095072519,0.1888,2641.7,2641.4,3.78580723]
[1750095072719,0.8272,2641.8,2641.5,6.185]
[1750095072918,8.49450202,2641.8,2641.5,6.185]
[1750095073674,8.49450202,2641.8,2641.5,9.97068357]
[1750095073852,0.02,2641.9,2641.6,3.78556116]
[1750095074004,0.1888,2641.6,2641.4,3.78583698]
[1750095074204,0.1888,2641.6,2641.5,3.7857278]
[1750095074401,0.02,2641.9,2641.5,9.9707278]
[1750095074805,0.1888,2641.5,2641.4,4.33579367]
[1750095075047,0.1888,2641.5,2641.3,3.78595599]
[1750095075342,0.7801,2641.7,2641.4,6.185]
[1750095075554,1.53915196,2641.7,2641.4,6.185]
[1750095075909,1.53915196,2641.7,2641.3,5.39095599]
[1750095075910,1.53915196,2641.7,2641.3,1.605]
[1750095076140,1.53915196,2641.7,2641.1,8.001]
[1750095076141,0.1888,2641.3,2641.2,1.605]
[1750095076340,3.78568954,2641.6,2641.2,1.605]
[1750095076652,3.78568954,2641.6,2641.3,6.185]
[1750095076653,0.91102867,2641.5,2641.3,6.185]
[1750095077007,0.1888,2641.3,2641.2,1.605]
[1750095077432,0.1888,2641.3,2641.2,7.79]
[1750095078350,0.1888,2641.3,2640.6,0.1888]
[1750095078351,3.78630116,2641.1,2640.6,0.1888]
[1750095078539,3.78630116,2641.1,2639.7,0.767]
[1750095078540,0.7578,2640.4,2639.7,0.767]
[1750095078740,14.66111085,2640.0,2639.8,6.219]
[1750095078975,14.66103856,2640.0,2639.4,0.767]
[1750095079281,14.66109894,2640.0,2639.5,6.219]
[1750095079483,10.87315916,2640.0,2639.5,6.219]
[1750095079636,0.7578,2640.4,2639.5,6.219]
[1750095079836,10.0,2640.2,2639.7,3.78824075]
[1750095080165,3.78781325,2640.1,2639.8,7.823]
[1750095080352,13.78766279,2640.2,2639.8,7.823]
[1750095080552,3.78782034,2640.1,2639.8,7.823]
[1750095080750,13.78766279,2640.2,2639.8,7.823]
[1750095080751,3.78766348,2640.2,2639.8,7.823]
[1750095080967,3.78775626,2640.1,2639.8,7.823]
[1750095081356,13.78751362,2640.3,2639.8,7.823]